bitfinex/quotes_ETHUSD_20260225
["timestamp","ask_amount","ask_price","bid_price","bid_amount"]
[1772062085296,2.92383658,2073.4,2072.8,6.56467592]
[1772062086482,2.92383658,2073.4,2072.8,3.53734041]
[1772062086679,2.92383658,2073.4,2072.9,3.02733551]
[1772062087183,2.92383658,2073.4,2073.0,0.001]
[1772062088310,2.92383658,2073.3,2073.0,0.001]
[1772062089808,2.92383658,2073.4,2073.0,0.001]
[1772062090715,2.92583658,2073.6,2073.1,3.02733551]
[1772062090900,2.92583658,2073.6,2073.0,2.33124368]
[1772062091073,2.92583658,2073.6,2073.0,5.35857919]
[1772062091273,2.92583658,2073.6,2073.1,4.233259]
[1772062095005,2.92583658,2073.6,2073.0,9.23393766]
[1772062095006,2.92583658,2073.6,2073.0,2.33124368]
[1772062095219,2.92383658,2073.5,2073.0,0.001]
[1772062095713,2.92383658,2073.4,2073.0,0.001]
[1772062098708,1.2057362,2073.5,2073.1,3.02733551]
[1772062098709,2.92383658,2073.5,2073.1,3.02733551]
[1772062098914,2.92383658,2073.5,2073.0,2.33124368]
[1772062099394,2.92383658,2073.5,2073.2,0.001]
[1772062099914,0.002,2073.6,2073.2,3.02833551]
[1772062100491,0.002,2073.6,2073.3,1.20580716]
[1772062100707,0.002,2073.6,2073.3,6.56338635]
[1772062100914,0.002,2073.6,2073.3,3.02733551]
[1772062101311,0.002,2073.8,2073.5,3.02733551]
[1772062101721,0.002,2073.8,2073.4,2.33024368]
[1772062101923,0.002,2073.8,2073.4,5.35757919]
[1772062102619,0.002,2073.8,2073.4,6.56327143]
[1772062104925,0.002,2074.1,2073.7,5.35757919]
[1772062105099,0.002,2074.1,2074.0,2.33024368]
[1772062105424,0.002,2074.1,2074.0,0.46530234]
[1772062106497,2.92383658,2074.4,2074.0,0.46530234]
[1772062106705,2.92383658,2074.4,2074.2,0.46530234]
[1772062107291,2.92383658,2074.4,2073.9,6.55946442]
[1772062108220,2.82664227,2074.6,2074.2,2.32671695]
[1772062108422,2.82664227,2074.6,2074.0,2.92101498]
[1772062108423,2.82464227,2074.5,2074.0,2.92101498]
[1772062108638,2.82464227,2074.5,2073.8,4.12648851]
[1772062109324,0.002,2074.6,2074.4,2.32671695]
[1772062110118,0.002,2074.6,2074.5,2.92101498]
[1772062110705,0.002,2074.6,2074.5,5.24773193]
[1772062111312,0.002,2074.6,2074.5,6.45284159]
[1772062111831,0.002,2074.6,2074.1,2.085]
[1772062111832,3.03724889,2074.6,2074.1,2.085]
[1772062112131,3.03724889,2074.6,2074.1,3.29031166]
[1772062112329,3.03724889,2074.6,2074.1,1.20531166]
[1772062112527,3.03724889,2074.6,2074.0,1.20540019]
[1772062112826,3.03724889,2074.6,2073.8,3.29147605]
[1772062113013,3.03724889,2074.6,2073.7,1.20556709]
[1772062113725,3.03724889,2074.6,2074.1,2.32671695]
[1772062115123,0.002,2074.6,2074.4,2.32671695]
[1772062115831,3.03524889,2075.2,2074.5,3.0171201]
[1772062116126,3.03524889,2075.2,2074.4,3.53183974]
[1772062116127,3.03524889,2075.4,2074.7,2.32671695]
[1772062116317,3.03524889,2075.3,2074.7,2.32671695]
[1772062117935,3.03524889,2075.3,2074.8,1.20493541]
[1772062118105,2.063,2075.6,2074.7,1.20496146]
[1772062118106,3.03524889,2075.6,2074.7,1.20496146]
[1772062118504,7.43113589,2075.9,2074.7,1.20496146]
[1772062118505,3.03524889,2075.9,2075.4,2.32671695]
[1772062118717,3.03524889,2075.9,2074.9,3.0171201]
[1772062119300,3.03524889,2075.9,2074.9,6.27093119]
[1772062119635,3.03524889,2075.8,2074.9,6.27093119]
[1772062119806,3.03524889,2075.8,2075.0,1.20481927]
[1772062120001,3.03524889,2076.0,2075.2,6.27093119]
[1772062120207,3.03524889,2076.0,2075.0,1.20481927]
[1772062120208,3.03524889,2076.3,2075.5,3.25381109]
[1772062120427,2.13390755,2076.6,2075.5,3.25381109]
[1772062120428,3.03524889,2076.2,2075.5,3.25381109]
[1772062120803,3.03524889,2076.5,2075.3,3.0171201]
[1772062121006,3.03524889,2076.4,2075.3,3.0171201]
[1772062121310,3.03524889,2076.4,2075.0,4.45863036]
[1772062121311,3.03524889,2076.3,2075.0,1.20481927]
[1772062121816,3.03524889,2076.1,2074.8,4.8192771]
[1772062122020,3.03524889,2075.9,2074.8,7.8363972]
[1772062122208,1.20412291,2076.2,2074.8,7.8363972]
[1772062122209,3.03524889,2075.7,2074.9,3.0171201]
[1772062123638,1.607,2075.8,2074.8,4.8192771]
[1772062123639,3.03724889,2075.6,2074.8,4.8192771]
[1772062123817,3.03724889,2075.6,2074.6,1.20505157]
[1772062124022,3.03524889,2075.4,2074.4,7.8373264]
[1772062125126,3.03524889,2075.4,2074.5,3.0171201]
[1772062125333,3.03524889,2075.4,2074.6,3.25381109]
[1772062125525,3.03524889,2075.4,2074.7,3.0171201]
[1772062125724,3.03724889,2075.6,2074.7,3.0171201]
[1772062126238,3.03524889,2075.5,2074.8,1.20493541]
[1772062128939,3.03524889,2075.5,2074.8,4.22205551]
[1772062130218,0.002,2075.6,2074.9,6.27093119]
[1772062130424,0.002,2075.6,2075.0,3.0171201]
[1772062132338,0.002,2075.6,2075.1,1.20476121]
[1772062133135,3.03724889,2075.6,2074.9,3.28583188]
[1772062133319,3.03724889,2075.6,2074.9,1.20483188]
[1772062135120,3.03524889,2075.5,2074.8,7.83662999]
[1772062135322,3.03524889,2075.5,2074.8,11.09044108]
[1772062135930,0.002,2075.6,2074.9,2.99740627]
[1772062136253,1.20647317,2075.6,2074.9,2.99740627]
[1772062136552,0.002,2075.6,2074.9,2.99740627]
[1772062136923,0.002,2075.6,2075.0,0.001]
[1772062137341,0.002,2075.6,2075.0,1.20581927]
[1772062137543,0.002,2075.6,2075.0,4.20322554]
[1772062137940,0.002,2075.6,2075.1,2.99740627]
[1772062139149,3.00022209,2075.6,2075.0,1.20581927]
[1772062139349,2.99822209,2075.4,2075.0,0.001]
[1772062141760,4.20282427,2075.4,2075.0,0.001]
[1772062143657,2.99822209,2075.3,2075.0,0.001]
[1772062145262,4.2028712,2075.3,2075.0,0.001]
[1772062145761,2.99822209,2075.3,2075.0,0.001]
[1772062146057,2.99822209,2075.2,2075.0,0.001]
[1772062146759,2.99822209,2075.2,2074.5,1.20605313]
[1772062146955,2.99822209,2075.1,2074.5,1.20605313]
[1772062147441,2.99822209,2075.1,2074.6,0.001]
[1772062150058,4.20299004,2075.1,2074.5,4.2034594]
[1772062150239,4.20299004,2075.1,2074.6,0.001]
[1772062150662,4.20298403,2075.1,2074.5,4.2034594]
[1772062150844,4.20298403,2075.1,2074.6,0.001]
[1772062153062,2.99822209,2075.0,2074.6,0.001]
[1772062153734,2.99822209,2075.0,2074.3,1.20622124]
[1772062154063,2.99822209,2075.0,2074.4,0.001]
[1772062154751,2.99822209,2074.8,2074.4,0.001]
[1772062155285,2.99822209,2074.6,2074.0,0.001]
[1772062155486,2.99822209,2074.6,2074.1,0.001]
[1772062155771,2.99822209,2074.6,2074.0,0.001]
[1772062155969,2.99822209,2074.6,2074.0,0.002]
[1772062156335,2.99822209,2074.6,2074.0,1.20736584]
[1772062157067,1.20510966,2074.5,2074.0,0.002]
[1772062157445,2.99822209,2074.4,2074.0,0.002]
[1772062159242,6.87843865,2074.7,2074.0,0.002]
[1772062159243,4.20344794,2074.3,2074.0,0.002]
[1772062159436,1.20514322,2074.5,2074.0,0.002]
[1772062159637,1.20514322,2074.5,2074.0,2.99940627]
[1772062159838,4.2033156,2074.6,2074.0,2.99940627]
[1772062161249,2.99822209,2074.5,2074.0,2.99940627]
[1772062161666,2.99822209,2074.5,2074.0,0.002]
[1772062162338,2.99822209,2074.5,2074.0,4.20480583]
[1772062162668,6.26126597,2074.7,2074.0,4.20480583]
[1772062163464,2.99822209,2074.6,2074.0,4.20480583]
[1772062163858,2.99822209,2074.6,2074.0,4.20380583]
[1772062164361,2.99822209,2074.6,2074.0,2.99840627]
[1772062165272,2.99822209,2074.6,2074.0,4.20380505]
[1772062165473,4.20332017,2074.6,2074.0,4.20380505]
[1772062165676,4.20332017,2074.6,2074.2,0.001]
[1772062166046,0.002,2074.4,2074.2,0.001]
[1772062166559,2.71294736,2074.3,2074.0,0.001]
[1772062166763,4.77494736,2074.3,2074.1,0.001]
[1772062167066,2.062,2074.3,2074.1,2.79027536]
[1772062167475,2.062,2074.3,2074.1,3.99560502]
[1772062168263,2.064,2074.6,2074.3,2.78927536]
[1772062169582,2.064,2074.6,2074.4,2.78927536]
[1772062169957,0.002,2074.6,2074.4,2.78927536]
[1772062171562,0.002,2074.6,2074.4,3.99443688]
[1772062171960,0.002,2074.6,2074.4,2.78927536]
[1772062172262,0.002,2074.6,2074.1,4.82124602]
[1772062172469,0.002,2074.6,2074.1,7.51583111]
[1772062172689,0.002,2074.6,2074.2,2.69458509]
[1772062173682,0.002,2074.6,2074.3,3.89981094]
[1772062173966,0.002,2074.6,2074.3,2.69458509]
[1772062176582,0.002,2074.6,2074.3,3.89981093]
[1772062176897,0.002,2074.6,2074.3,2.69458509]
[1772062178975,0.002,2074.6,2074.3,3.89980498]
[1772062179182,0.002,2074.6,2074.3,3.89981066]
[1772062179387,0.002,2074.6,2074.3,3.90081066]
[1772062179607,0.002,2074.6,2074.3,2.69558509]
[1772062180100,0.002,2074.4,2074.3,2.69558509]
[1772062180675,0.002,2074.4,2074.3,0.001]
[1772062181903,0.002,2074.4,2074.3,2.69558509]
[1772062187854,2.70198206,2074.4,2074.0,0.001]
[1772062192561,2.70198206,2074.4,2074.2,0.001]
[1772062192858,2.69998206,2074.3,2074.0,0.001]
[1772062193157,2.69998206,2074.3,2073.8,0.001]
[1772062193327,3.1656944,2074.1,2073.8,0.001]
[1772062195157,2.69998206,2073.8,2073.2,0.001]
[1772062195359,3.1656944,2073.5,2073.2,0.001]
[1772062195874,3.20017767,2073.3,2073.2,0.001]
[1772062196166,2.73446533,2073.3,2073.2,0.001]
[1772062196371,2.73446533,2073.3,2073.0,0.001]
[1772062197412,2.73446533,2073.2,2073.0,0.001]
[1772062197685,2.73446533,2073.0,2072.8,0.001]
[1772062197833,2.73446533,2073.0,2072.1,2.70640321]
[1772062198475,2.73446533,2073.0,2072.1,3.91289727]
[1772062198636,2.73446533,2073.0,2072.1,3.91289516]
[1772062199038,2.73446533,2073.0,2072.2,2.70540321]
[1772062199839,2.73446533,2073.0,2072.1,1.20749195]
[1772062199840,2.73446533,2073.2,2072.4,2.70540321]
[1772062200032,2.063,2073.1,2072.4,2.70540321]
[1772062200234,4.79746533,2073.1,2072.4,2.70540321]
[1772062200435,2.73446533,2073.0,2072.4,2.70540321]
[1772062200665,2.73446533,2073.0,2072.2,3.91180635]
[1772062200874,2.73446533,2072.9,2072.1,0.001]
[1772062201184,2.73446533,2072.6,2072.1,0.001]
[1772062201473,4.66037956,2073.0,2072.1,0.001]
[1772062201474,2.063,2072.5,2072.1,3.91289801]
[1772062201681,2.73446533,2072.8,2072.2,2.70540321]
[1772062201682,4.79746533,2072.8,2072.2,2.70540321]
[1772062202031,6.00360794,2072.8,2072.2,3.91183708]
[1772062202255,6.00360794,2072.8,2072.2,2.70540321]
[1772062202463,2.73446533,2072.7,2072.1,0.001]
[1772062202946,2.73446533,2072.7,2071.9,0.001]
[1772062203152,2.73446533,2072.5,2071.9,0.001]
[1772062203579,2.73446533,2072.7,2072.0,2.70540321]
[1772062203779,6.36,2073.1,2072.0,2.70540321]
[1772062203780,2.063,2072.8,2072.1,2.70540321]
[1772062204149,2.73446533,2073.1,2072.3,2.70540321]
[1772062204405,2.063,2073.3,2072.7,2.70540321]
[1772062204679,2.33018978,2074.2,2073.0,2.70540321]
[1772062204680,1.152,2073.9,2073.0,2.70540321]
[1772062204987,3.88646533,2073.9,2073.0,2.70540321]
[1772062205348,1.152,2073.9,2073.0,2.70540321]
[1772062206452,1.20731133,2074.2,2073.3,2.70540321]
[1772062206746,0.002,2074.2,2073.6,2.70540321]
[1772062206967,1.20728662,2074.2,2073.2,2.70540321]
[1772062207171,3.94175195,2074.2,2073.2,2.70540321]
[1772062207377,4.79446533,2074.1,2073.2,2.70540321]
[1772062207580,2.73446533,2074.0,2073.2,2.70540321]
[1772062207949,2.73446533,2074.0,2073.0,2.94596193]
[1772062208152,4.39018978,2074.1,2073.1,2.70540321]
[1772062208153,2.06,2074.1,2073.1,2.70540321]
[1772062208457,2.06,2074.1,2073.4,2.70540321]
[1772062209092,3.26534222,2074.1,2073.4,2.70540321]
[1772062209389,3.26534222,2074.1,2073.1,3.91129049]
[1772062209390,2.73446533,2074.0,2073.1,3.91129049]
[1772062209570,2.73446533,2073.8,2072.9,1.20602662]
[1772062209742,2.73446533,2073.8,2072.5,4.78640321]
[1772062209985,2.73446533,2073.8,2072.6,3.91161762]
[1772062210196,2.73446533,2073.5,2072.5,1.20622608]
[1772062210409,1.20586532,2073.2,2072.4,4.82629749]
[1772062210916,3.27375539,2073.4,2072.5,2.70540321]
[1772062211299,3.27375213,2073.4,2072.5,2.70540321]
[1772062212205,2.73446533,2073.3,2072.5,2.70540321]
[1772062212615,1.20586532,2073.2,2072.6,1.20621441]
[1772062212831,1.20586532,2073.2,2072.4,0.001]
[1772062212832,2.73446533,2073.1,2072.4,0.001]
[1772062214603,1.20598166,2073.0,2072.4,0.001]
[1772062214923,2.73446533,2073.5,2072.4,2.70640321]
[1772062215096,1.20567762,2073.6,2072.8,2.70540321]
[1772062215292,4.54746533,2073.8,2072.8,2.70540321]
[1772062215293,1.20560897,2073.7,2072.8,2.70540321]
[1772062215510,3.9400743,2073.7,2072.8,2.70540321]
[1772062215709,2.73446533,2073.6,2072.8,2.70540321]
[1772062216030,2.73446533,2073.6,2072.5,2.70540321]
[1772062217105,1.20569086,2073.5,2072.6,1.20621441]
[1772062217317,0.002,2072.9,2072.6,3.91161762]
[1772062218675,0.002,2073.1,2072.7,2.70540321]
[1772062219306,0.002,2073.1,2072.8,1.20609803]
[1772062219508,0.002,2073.1,2072.4,6.2428656]
[1772062219710,0.002,2073.1,2072.5,1.20627261]
[1772062220528,0.002,2073.1,2072.4,3.91273076]
[1772062220766,2.73646533,2073.1,2072.4,0.001]
[1772062221255,2.73446533,2072.9,2072.4,0.001]
[1772062221541,2.73446533,2072.6,2072.1,0.001]
[1772062221742,2.73446533,2072.5,2072.1,0.001]
[1772062222315,4.82592667,2073.1,2072.2,2.70540321]
[1772062222316,3.94243423,2073.1,2072.2,2.70540321]
[1772062223243,1.2079689,2073.1,2072.4,2.70540321]
[1772062224727,3.94243423,2073.1,2072.3,1.20638903]
[1772062224918,2.73446533,2073.0,2072.3,1.20638903]
[1772062225319,1.20603984,2072.9,2072.2,1.20640328]
[1772062226750,1.20603984,2072.9,2072.1,3.91286667]
[1772062227341,3.8995275,2072.9,2072.1,3.91286667]
[1772062228043,1.20603984,2072.9,2072.2,2.5451124]
[1772062228715,3.8995275,2072.9,2072.2,2.5451124]
[1772062229928,3.8995275,2072.9,2072.4,0.001]
[1772062230328,0.002,2072.7,2072.4,0.001]
[1772062231453,4.67471299,2072.7,2072.4,0.001]
[1772062231653,2.60871299,2072.6,2072.1,0.001]
[1772062232020,0.002,2072.7,2072.1,2.51342321]
[1772062232221,2.60871299,2072.6,2072.1,0.001]
[1772062234619,2.60871299,2072.4,2072.1,0.001]
[1772062234821,2.60871299,2072.3,2072.1,0.001]
[1772062235538,4.82705795,2072.7,2072.1,0.001]
[1772062235539,0.002,2072.7,2072.1,0.001]
[1772062235848,0.002,2072.7,2072.2,2.51242321]
[1772062236749,2.61071299,2072.7,2072.1,0.001]
[1772062236947,0.002,2072.7,2072.1,3.71992845]
[1772062237420,4.67471299,2072.6,2072.1,0.001]
[1772062237615,4.67471299,2072.6,2072.0,1.2075568]
[1772062237616,2.066,2072.6,2072.0,1.2075568]
[1772062238146,2.066,2072.6,2072.0,0.001]
[1772062238457,2.60871299,2072.4,2071.9,0.001]
[1772062238753,1.20638903,2072.3,2071.9,0.001]
[1772062238949,7.43421876,2072.4,2071.9,0.001]
[1772062238950,3.81508352,2072.4,2071.9,0.001]
[1772062239151,4.82523204,2072.5,2071.9,0.001]
[1772062239152,0.002,2072.7,2071.9,2.51342321]
[1772062239326,1.20816428,2072.7,2071.9,2.51342321]
[1772062240948,1.20816428,2072.7,2072.1,2.51242321]
[1772062240949,0.002,2072.7,2072.1,2.51242321]
[1772062242932,1.20621441,2072.6,2071.9,3.72000555]
[1772062243132,3.8149274,2072.6,2072.1,0.001]
[1772062243333,0.002,2072.5,2072.1,0.001]
[1772062243753,0.002,2072.5,2072.1,2.51342321]
[1772062245272,0.002,2072.5,2072.2,3.71887046]
[1772062246168,0.002,2072.5,2072.3,2.51242321]
[1772062247973,0.002,2072.5,2072.1,2.51342321]
[1772062248269,0.002,2072.5,2072.1,0.001]
[1772062248473,2.61071299,2072.5,2072.1,0.001]
[1772062249159,0.002,2072.5,2072.1,0.001]
[1772062252379,2.61071299,2072.5,2072.1,0.001]
[1772062252564,2.61071299,2072.5,2071.9,0.001]
[1772062252751,2.61071299,2072.5,2071.9,1.20761546]
[1772062253859,1.20633082,2072.4,2071.9,2.51342321]
[1772062254382,3.81702719,2072.5,2071.9,2.51342321]
[1772062255182,3.81702719,2072.5,2072.3,0.001]
[1772062256048,3.81702719,2072.5,2072.0,0.001]
[1772062257468,2.42011307,2072.4,2072.0,0.001]
[1772062257985,1.20638903,2072.3,2072.0,0.001]
[1772062259167,5.70848861,2072.4,2072.0,0.001]
[1772062259891,2.42011307,2072.3,2072.0,0.001]
[1772062260088,1.20644725,2072.2,2072.0,0.001]
[1772062260786,3.62654898,2072.3,2072.0,0.001]
[1772062261602,1.20831368,2072.5,2072.0,2.54529699]
[1772062261771,0.002,2072.7,2072.0,0.001]
[1772062261974,0.002,2072.7,2072.1,2.54429699]
[1772062262173,0.002,2072.7,2072.2,1.20644725]
[1772062262363,0.002,2072.7,2072.3,2.54429699]
[1772062262576,0.002,2072.7,2072.1,2.54429699]
[1772062262775,2.42211307,2072.7,2071.9,0.001]
[1772062263698,2.42011307,2072.6,2071.9,0.001]
[1772062263876,2.42011307,2072.4,2071.9,0.001]
[1772062264810,2.42011307,2072.2,2071.9,0.001]
[1772062264978,4.82677439,2072.7,2071.7,2.54429699]
[1772062265174,4.82677439,2072.7,2071.8,2.54429699]
[1772062265175,1.20815703,2072.7,2071.8,2.54429699]
[1772062265371,0.002,2072.7,2071.8,2.54429699]
[1772062266304,1.20817943,2072.7,2071.8,2.54429699]
[1772062266693,3.6282925,2072.7,2071.9,3.75091893]
[1772062267185,3.6282925,2072.7,2071.9,3.75191893]
[1772062267391,3.6282925,2072.7,2072.0,2.54429699]
[1772062267610,0.002,2072.5,2072.0,2.54429699]
[1772062268513,0.002,2072.5,2071.9,2.54529699]
[1772062268717,0.002,2072.5,2072.0,1.2065637]
[1772062268895,0.002,2072.5,2071.9,3.75188655]
[1772062269783,2.42011307,2072.4,2071.9,0.001]
[1772062270183,2.42011307,2072.4,2071.6,0.001]
[1772062270609,0.002,2072.5,2071.6,2.54529699]
[1772062270782,0.002,2072.5,2071.7,2.54429699]
[1772062270980,0.002,2072.5,2071.8,2.54429699]
[1772062272698,0.002,2072.5,2071.9,3.75091893]
[1772062273817,0.002,2072.5,2072.0,2.54429699]
[1772062275728,4.8261965,2072.9,2072.2,2.54429699]
[1772062275729,0.002,2072.9,2072.2,2.54429699]
[1772062275892,0.002,2072.9,2072.4,2.54429699]
[1772062276707,0.002,2072.9,2072.5,2.54429699]
[1772062277608,0.002,2072.9,2072.6,3.7505114]
[1772062278535,0.002,2073.1,2072.8,2.54429699]
[1772062278732,0.002,2073.4,2072.9,2.54429699]
[1772062279431,9.98924836,2074.6,2073.1,2.54429699]
[1772062279432,1.20545568,2074.0,2073.1,2.54429699]
[1772062279617,1.20545568,2074.0,2073.2,1.20586532]
[1772062280126,3.62556875,2074.0,2073.2,1.20586532]
[1772062281335,2.42011307,2073.9,2073.1,3.75017892]
[1772062282240,1.20551644,2073.8,2073.1,3.75017892]
[1772062282420,3.62559773,2073.9,2073.2,2.54429699]
[1772062282943,4.82178468,2074.0,2073.1,1.20588193]
[1772062282944,2.42011307,2074.0,2073.1,1.20592176]
[1772062283439,2.42011307,2074.0,2073.1,3.75021875]
[1772062283617,1.20730595,2074.2,2073.1,3.75021875]
[1772062283618,1.20730595,2074.2,2073.1,1.20592176]
[1772062283933,1.20730595,2074.2,2073.5,2.54429699]
[1772062285009,0.002,2074.2,2073.5,3.74998133]
[1772062285743,0.002,2074.2,2073.6,2.58791249]
[1772062287311,0.002,2074.2,2073.8,2.58791249]
[1772062287515,0.002,2074.4,2073.8,2.58791249]
[1772062288841,0.002,2074.7,2074.3,2.58791249]
[1772062289038,0.002,2074.7,2073.9,30.0]
[1772062289039,3.73685384,2074.7,2073.9,2.58791249]
[1772062289315,3.73685384,2074.7,2073.9,3.79332199]
[1772062290346,2.52985501,2074.6,2073.8,1.20548907]
[1772062291250,2.52985501,2074.6,2073.8,3.7031777]
[1772062291429,1.20510966,2074.5,2073.8,3.7031777]
[1772062291950,2.50784441,2074.4,2073.5,2.49768863]
[1772062294848,3.71307026,2074.3,2073.5,2.49768863]
[1772062295057,2.50784441,2074.2,2073.0,1.20593462]
[1772062295265,2.50784441,2074.2,2073.0,3.70362325]
[1772062295418,2.50784441,2074.2,2073.0,2.49768863]
[1772062295614,2.50784441,2073.9,2072.8,0.001]
[1772062295816,2.50784441,2073.6,2072.8,0.001]
[1772062296046,2.50784441,2073.5,2072.8,0.001]
[1772062296249,2.50784441,2073.5,2072.5,1.20723773]
[1772062296678,2.50784441,2073.5,2072.5,3.70492636]
[1772062297366,2.50784441,2073.3,2072.5,0.001]
[1772062297739,2.50784441,2073.0,2072.5,0.001]
[1772062298050,2.50784441,2073.3,2072.5,1.20727235]
[1772062298252,2.50784441,2073.3,2072.5,0.001]
[1772062298450,2.50784441,2073.3,2072.5,1.2072522]
[1772062298656,2.50784441,2073.3,2072.5,3.70494083]
[1772062298841,2.50784441,2073.3,2072.5,2.49868863]
[1772062299049,2.50784441,2073.3,2072.5,0.001]
[1772062299365,2.50784441,2073.3,2072.3,4.82645759]
[1772062299366,2.50784441,2073.1,2072.3,0.001]
[1772062299662,1.20586532,2073.2,2072.3,2.49868863]
[1772062299969,2.50784441,2073.1,2072.3,0.001]
[1772062300339,1.20586532,2073.2,2072.3,2.49868863]
[1772062302660,1.20580716,2073.3,2072.5,2.49768863]
[1772062303552,3.71365157,2073.3,2072.5,2.49768863]
[1772062303873,2.50784441,2073.2,2072.5,2.49768863]
[1772062305166,1.20592349,2073.1,2072.7,0.001]
[1772062305382,7.33065851,2073.5,2072.7,2.49868863]
[1772062305582,1.20569086,2073.5,2072.8,2.49768863]
[1772062307465,13.84029337,2077.2,2073.0,2.49768863]
[1772062307466,1.20540019,2074.0,2073.0,2.49768863]
[1772062307643,2.50784441,2073.9,2073.0,2.49768863]
[1772062309542,3.71336085,2073.8,2073.0,2.49768863]
[1772062309854,2.50784441,2073.7,2073.0,2.49768863]
[1772062310384,2.50784441,2073.7,2072.7,5.76580801]
[1772062310686,2.50784441,2073.7,2072.8,2.49768863]
[1772062310982,2.50784441,2073.5,2072.7,1.20715581]
[1772062311343,2.051,2073.6,2072.8,2.49768863]
[1772062311587,1.20569086,2073.5,2072.9,3.70372847]
[1772062315069,1.20569086,2073.5,2072.9,2.49768863]
[1772062315448,1.20569086,2073.5,2072.9,3.70372027]
[1772062315659,3.25667613,2073.6,2072.9,3.70372027]
[1772062315876,3.25667613,2073.6,2072.9,2.49768863]
[1772062316174,2.35864435,2073.5,2072.7,1.20712616]
[1772062317083,2.35864435,2073.3,2072.7,0.001]
[1772062317374,2.35864435,2073.3,2072.5,0.001]
[1772062317375,2.35864435,2073.2,2072.5,0.001]
[1772062317542,2.35864435,2073.0,2072.5,0.001]
[1772062317743,2.35864435,2073.0,2072.7,0.001]
[1772062317947,2.35864435,2073.0,2072.5,0.001]
[1772062317948,2.35864435,2072.9,2072.5,0.001]
[1772062318191,2.35864435,2072.6,2071.9,0.001]
[1772062318490,2.35864435,2072.5,2071.9,0.001]
[1772062319193,1.20633082,2072.4,2071.9,0.001]
[1772062319700,2.35864435,2072.3,2071.6,0.001]
[1772062319904,2.35864435,2072.2,2071.6,0.001]
[1772062320112,2.35864435,2072.0,2071.6,0.001]
[1772062320324,2.35864435,2072.0,2071.4,0.001]
[1772062320325,2.35864435,2071.9,2071.4,0.001]
[1772062320466,2.35864435,2071.6,2070.5,3.62471675]
[1772062320671,2.33034636,2071.7,2070.4,1.20749613]
[1772062320672,2.35864435,2071.4,2070.4,1.20749613]
[1772062320974,2.35864435,2071.4,2070.5,2.41732178]
[1772062321276,3.2598782,2071.5,2070.7,2.41732178]
[1772062321474,3.2598782,2071.5,2070.1,3.6249572]
[1772062321475,2.35864435,2071.1,2070.1,3.6249572]
[1772062321679,2.35864435,2070.9,2069.9,2.41732178]
[1772062321885,2.35864435,2070.9,2069.8,1.20784616]
[1772062321886,2.35864435,2070.8,2069.8,1.20784616]
[1772062322285,2.35864435,2070.8,2069.7,1.2078773]
[1772062322689,2.35864435,2070.4,2069.5,1.21100855]
[1772062322896,2.35864435,2070.3,2069.5,1.21100855]
[1772062323111,0.18685624,2070.9,2069.5,1.21100855]
[1772062323112,2.062,2070.9,2069.9,2.41732178]
[1772062323690,4.42064435,2070.9,2069.9,2.41732178]
[1772062324314,4.42064435,2070.9,2069.8,1.20784616]
[1772062324315,2.062,2070.9,2070.1,2.41732178]
[1772062324517,2.062,2070.9,2069.8,3.62516794]
[1772062324723,2.35864435,2070.8,2069.8,3.62516794]
[1772062325185,2.35864435,2070.8,2069.9,2.41732178]
[1772062325386,3.26924386,2070.9,2069.9,2.41732178]
[1772062325693,2.062,2070.9,2069.9,2.41732178]
[1772062325904,2.062,2070.9,2070.2,2.41732178]
[1772062326089,1.20706728,2071.2,2070.4,2.41732178]
[1772062326293,4.35264435,2071.4,2070.4,2.41732178]
[1772062326294,3.20095713,2071.4,2070.4,2.41732178]
[1772062326488,2.35864435,2071.3,2070.1,5.01738269]
[1772062326902,2.35864435,2071.3,2070.1,2.41732178]
[1772062328618,1.20702974,2071.2,2070.3,2.41732178]
[1772062330646,0.002,2071.2,2070.5,2.41732178]
[1772062330802,4.82648584,2072.0,2070.4,1.20749613]
[1772062330803,3.2675637,2072.1,2071.0,2.41732178]
[1772062331006,4.82628191,2072.0,2071.0,2.41732178]
[1772062331335,0.002,2071.4,2070.6,2.41732178]
[1772062331553,0.002,2071.4,2070.8,2.41732178]
[1772062331830,0.002,2071.4,2070.7,2.33034636]
[1772062331831,0.002,2071.4,2071.1,2.41732178]
[1772062332245,0.002,2071.4,2070.7,2.41732178]
[1772062332536,2.36064435,2071.4,2070.3,1.20750994]
[1772062332702,2.36064435,2071.4,2070.2,1.2075718]
[1772062332703,3.56561581,2071.3,2070.2,1.2075718]
[1772062332908,2.35864435,2071.1,2070.0,1.20770374]
[1772062333331,2.35864435,2071.1,2070.0,3.62502552]
[1772062333530,2.35864435,2071.1,2069.8,1.20781169]
[1772062333958,2.35864435,2070.8,2069.7,0.001]
[1772062334110,2.35864435,2070.5,2069.7,0.001]
[1772062334306,2.33034636,2070.6,2069.5,0.004]
[1772062334307,2.35864435,2069.9,2069.5,0.004]
[1772062334510,2.35864435,2069.9,2069.2,0.001]
[1772062334511,4.42064435,2069.9,2069.2,0.001]
[1772062334711,1.20784616,2069.8,2069.2,0.001]
[1772062335118,4.42064435,2069.9,2069.2,0.001]
[1772062335324,4.83008682,2070.4,2069.3,2.41732178]
[1772062335535,6.89308682,2070.4,2069.3,2.41732178]
[1772062336234,2.063,2070.4,2069.6,2.41732178]
[1772062336737,2.063,2070.4,2069.7,1.20790452]
[1772062337243,2.063,2070.4,2069.6,7.24893988]
[1772062337244,1.20750065,2070.4,2069.6,3.62523896]
[1772062337444,7.1880037,2070.7,2069.6,3.62523896]
[1772062338741,2.35864435,2070.6,2069.6,3.62523896]
[1772062338943,2.35864435,2070.5,2069.5,1.20798706]
[1772062339146,2.35864435,2070.5,2069.3,2.41732178]
[1772062339351,2.35864435,2070.2,2069.2,1.20916023]
[1772062339557,2.35864435,2070.1,2069.2,1.20916023]
[1772062339774,2.35864435,2070.1,2069.2,1.20918965]
[1772062340076,2.35864435,2070.1,2068.8,4.83371136]
[1772062340077,2.35864435,2070.1,2065.8,8.65776654]
[1772062340273,2.35864435,2066.4,2064.8,2.41732178]
[1772062340479,2.30089676,2066.2,2065.0,30.0]
[1772062340642,2.35864435,2066.8,2064.9,1.21071238]
[1772062340643,3.57134636,2066.4,2065.1,2.41732178]
[1772062340841,2.35864435,2066.8,2065.1,2.41732178]
[1772062340842,3.56334636,2066.5,2065.2,2.41732178]